[Event "November 21 Early 2023"]
[Site "https://www.chess.com"]
[Date "2023.11.21"]
[Round "9"]
[White "Jimenez Fernandez, Rebeca"]
[Black "Ongut, Tamas Gunes"]
[Result "0-1"]
[Board "118"]
[TimeControl "180+1"]
[WhiteFideId "32070934"]
[BlackFideId "770280"]
[WhiteElo "2015"]
[BlackElo "2148"]
[WhiteTeam "ESP"]
[BlackTeam "HUN"]
[WhiteClock "0:00:00"]
[BlackClock "0:00:49"]

1. e4 {[%clk 0:02:53]}  e5 {[%clk 0:02:58]} 2. d4 {[%clk 0:02:52]}  exd4 {[%clk 0:02:58]} 3. Qxd4 {[%clk 0:02:52]}  Nc6 {[%clk 0:02:58]} 4. Qe3 {[%clk 0:02:52]}  Nf6 {[%clk 0:02:58]} 5. Nc3 {[%clk 0:02:53]}  Bb4 {[%clk 0:02:58]} 6. Bd2 {[%clk 0:02:53]}  O-O {[%clk 0:02:58]} 7. O-O-O {[%clk 0:02:54]}  Re8 {[%clk 0:02:58]} 8. Bc4 {[%clk 0:02:54]}  d5 {[%clk 0:02:57]} 9. Nxd5 {[%clk 0:02:48]}  Bxd2+ {[%clk 0:02:32]} 10. Rxd2 {[%clk 0:02:43]}  Nxe4 {[%clk 0:02:32]} 11. Rd1 {[%clk 0:02:10]}  Nd6 {[%clk 0:02:31]} 12. Qc3 {[%clk 0:01:22]}  Qg5+ {[%clk 0:02:04]} 13. f4 {[%clk 0:01:13]}  Qxg2 {[%clk 0:02:01]} 14. Nf3 {[%clk 0:00:50]}  Bg4 {[%clk 0:01:45]} 15. Nf6+ {[%clk 0:00:32]}  Kh8 {[%clk 0:01:18]} 16. Nxe8 {[%clk 0:00:20]}  Rxe8 {[%clk 0:01:19]} 17. Nh4 {[%clk 0:00:13]}  Qf2 {[%clk 0:01:12]} 18. h3 {[%clk 0:00:07]}  Bxd1 {[%clk 0:01:09]} 19. Bxf7 {[%clk 0:00:03]}  Qxf4+ {[%clk 0:00:59]} 20. Kb1 {[%clk 0:00:03]}  Nxf7 {[%clk 0:00:55]} 21. Rg1 {[%clk 0:00:00]}  Nfe5 {[%clk 0:00:49]} 0-1

[Event "November 21 Early 2023"]
[Site "https://www.chess.com"]
[Date "2023.11.21"]
[Round "9"]
[White "Shishkov, Andrei"]
[Black "Semenova, Alina"]
[Result "1-0"]
[Board "120"]
[TimeControl "180+1"]
[WhiteFideId "4500563"]
[BlackFideId "24113875"]
[WhiteElo "2241"]
[BlackElo "1827"]
[WhiteTeam "EST"]
[BlackTeam "RUS"]
[WhiteClock "0:00:32"]
[BlackClock "0:00:52"]

1. d4 {[%clk 0:02:52]}  d5 {[%clk 0:02:59]} 2. c4 {[%clk 0:02:52]}  e6 {[%clk 0:02:59]} 3. Nc3 {[%clk 0:02:52]}  Nf6 {[%clk 0:02:59]} 4. cxd5 {[%clk 0:02:52]}  exd5 {[%clk 0:02:59]} 5. Bg5 {[%clk 0:02:52]}  c6 {[%clk 0:02:59]} 6. e3 {[%clk 0:02:53]}  Be7 {[%clk 0:02:58]} 7. Bd3 {[%clk 0:02:53]}  Nbd7 {[%clk 0:02:59]} 8. Nge2 {[%clk 0:02:54]}  O-O {[%clk 0:02:59]} 9. O-O {[%clk 0:02:54]}  Re8 {[%clk 0:02:56]} 10. Qc2 {[%clk 0:02:55]}  h6 {[%clk 0:02:44]} 11. Bh4 {[%clk 0:02:54]}  a5 {[%clk 0:02:44]} 12. Rad1 {[%clk 0:02:38]}  Nb6 {[%clk 0:02:30]} 13. f3 {[%clk 0:02:35]}  Nc4 {[%clk 0:01:47]} 14. Bf2 {[%clk 0:02:29]}  Bb4 {[%clk 0:01:45]} 15. e4 {[%clk 0:02:22]}  dxe4 {[%clk 0:01:42]} 16. Bxc4 {[%clk 0:02:12]}  b5 {[%clk 0:01:42]} 17. Bxf7+ {[%clk 0:01:38]}  Kxf7 {[%clk 0:01:39]} 18. fxe4 {[%clk 0:01:39]}  Kg8 {[%clk 0:01:36]} 19. e5 {[%clk 0:01:37]}  Ng4 {[%clk 0:01:34]} 20. h3 {[%clk 0:01:32]}  Nxf2 {[%clk 0:01:34]} 21. Rxf2 {[%clk 0:01:33]}  Be6 {[%clk 0:01:30]} 22. Ne4 {[%clk 0:01:27]}  Bd5 {[%clk 0:01:28]} 23. Nf4 {[%clk 0:01:23]}  Qd7 {[%clk 0:01:08]} 24. Nh5 {[%clk 0:00:54]}  Rf8 {[%clk 0:01:01]} 25. Nef6+ {[%clk 0:00:50]}  gxf6 {[%clk 0:01:00]} 26. Qg6+ {[%clk 0:00:50]}  Kh8 {[%clk 0:01:00]} 27. exf6 {[%clk 0:00:32]}  Qh7 {[%clk 0:00:52]} 28. Qg7+ {[%clk 0:00:32]} 1-0

[Event "November 21 Early 2023"]
[Site "https://www.chess.com"]
[Date "2023.11.21"]
[Round "9"]
[White "Elbebiber"]
[Black "Gavrilov, Maxim"]
[Result "0-1"]
[Board "122"]
[TimeControl "180+1"]
[BlackFideId "24271454"]
[WhiteElo "2175"]
[BlackElo "2157"]
[BlackTeam "RUS"]
[WhiteClock "0:00:00"]
[BlackClock "0:00:39"]

1. d4 {[%clk 0:03:00]}  d5 {[%clk 0:02:58]} 2. Bg5 {[%clk 0:02:59]}  h6 {[%clk 0:02:54]} 3. Bh4 {[%clk 0:02:54]}  c6 {[%clk 0:02:54]} 4. Nf3 {[%clk 0:02:41]}  Qb6 {[%clk 0:02:52]} 5. b3 {[%clk 0:02:28]}  Bf5 {[%clk 0:02:49]} 6. c3 {[%clk 0:02:26]}  e6 {[%clk 0:02:48]} 7. e3 {[%clk 0:02:24]}  Nd7 {[%clk 0:02:48]} 8. Bd3 {[%clk 0:02:22]}  Bxd3 {[%clk 0:02:47]} 9. Qxd3 {[%clk 0:02:22]}  Ngf6 {[%clk 0:02:46]} 10. O-O {[%clk 0:02:18]}  Bd6 {[%clk 0:02:41]} 11. Nbd2 {[%clk 0:02:13]}  O-O {[%clk 0:02:38]} 12. Rfe1 {[%clk 0:02:08]}  Rfe8 {[%clk 0:02:26]} 13. e4 {[%clk 0:01:51]}  dxe4 {[%clk 0:02:25]} 14. Nxe4 {[%clk 0:01:50]}  Be7 {[%clk 0:02:24]} 15. Nxf6+ {[%clk 0:01:46]}  Bxf6 {[%clk 0:02:22]} 16. Bxf6 {[%clk 0:01:44]}  Nxf6 {[%clk 0:02:23]} 17. Rad1 {[%clk 0:01:36]}  Rad8 {[%clk 0:02:17]} 18. Qe2 {[%clk 0:01:25]}  Nd5 {[%clk 0:02:13]} 19. Rc1 {[%clk 0:01:15]}  c5 {[%clk 0:02:01]} 20. dxc5 {[%clk 0:01:02]}  Qxc5 {[%clk 0:01:59]} 21. c4 {[%clk 0:00:59]}  Nf4 {[%clk 0:01:56]} 22. Qe3 {[%clk 0:00:53]}  Qxe3 {[%clk 0:01:44]} 23. Rxe3 {[%clk 0:00:53]}  f6 {[%clk 0:01:40]} 24. g3 {[%clk 0:00:50]}  Ng6 {[%clk 0:01:23]} 25. Kf1 {[%clk 0:00:40]}  e5 {[%clk 0:01:22]} 26. Ke2 {[%clk 0:00:38]}  e4 {[%clk 0:01:15]} 27. Nd2 {[%clk 0:00:31]}  f5 {[%clk 0:01:14]} 28. f4 {[%clk 0:00:22]}  Ne7 {[%clk 0:01:01]} 29. Rec3 {[%clk 0:00:20]}  Nc6 {[%clk 0:01:01]} 30. Nf1 {[%clk 0:00:18]}  Nd4+ {[%clk 0:00:59]} 31. Kf2 {[%clk 0:00:18]}  Nf3 {[%clk 0:00:58]} 32. R1c2 {[%clk 0:00:13]}  Rd1 {[%clk 0:00:54]} 33. h4 {[%clk 0:00:12]}  Red8 {[%clk 0:00:51]} 34. Ne3 {[%clk 0:00:11]}  R8d2+ {[%clk 0:00:49]} 35. Rxd2 {[%clk 0:00:09]}  Rxd2+ {[%clk 0:00:50]} 36. Kf1 {[%clk 0:00:06]}  g6 {[%clk 0:00:47]} 37. Rc2 {[%clk 0:00:05]}  Rd3 {[%clk 0:00:44]} 38. Nd5 {[%clk 0:00:05]}  Kf7 {[%clk 0:00:43]} 39. Nb4 {[%clk 0:00:00]}  Nd4 {[%clk 0:00:39]} 0-1

[Event "November 21 Early 2023"]
[Site "https://www.chess.com"]
[Date "2023.11.21"]
[Round "9"]
[White "RodokininEV"]
[Black "Matthes, Aaron"]
[Result "1-0"]
[Board "123"]
[TimeControl "180+1"]
[BlackFideId "16227310"]
[WhiteElo "2516"]
[BlackElo "2357"]
[BlackTeam "GER"]
[WhiteClock "0:00:06"]
[BlackClock "0:00:18"]

1. Nf3 {[%clk 0:03:00]}  b6 {[%clk 0:02:57]} 2. g3 {[%clk 0:03:01]}  Bb7 {[%clk 0:02:58]} 3. Bg2 {[%clk 0:03:00]}  g5 {[%clk 0:02:59]} 4. h3 {[%clk 0:02:53]}  h6 {[%clk 0:02:58]} 5. O-O {[%clk 0:02:52]}  Bg7 {[%clk 0:02:58]} 6. c4 {[%clk 0:02:51]}  e6 {[%clk 0:02:58]} 7. d4 {[%clk 0:02:49]}  Ne7 {[%clk 0:02:58]} 8. Nc3 {[%clk 0:02:49]}  O-O {[%clk 0:02:55]} 9. e4 {[%clk 0:02:50]}  c5 {[%clk 0:02:54]} 10. d5 {[%clk 0:02:49]}  d6 {[%clk 0:02:45]} 11. h4 {[%clk 0:02:47]}  g4 {[%clk 0:02:42]} 12. Nh2 {[%clk 0:02:47]}  h5 {[%clk 0:02:41]} 13. f3 {[%clk 0:02:47]}  gxf3 {[%clk 0:02:41]} 14. Qxf3 {[%clk 0:02:44]}  exd5 {[%clk 0:02:33]} 15. cxd5 {[%clk 0:02:45]}  Nd7 {[%clk 0:02:32]} 16. Qxh5 {[%clk 0:02:42]}  Ne5 {[%clk 0:02:28]} 17. Bf4 {[%clk 0:02:38]}  N7g6 {[%clk 0:02:25]} 18. Ng4 {[%clk 0:02:34]}  Nxg4 {[%clk 0:02:07]} 19. Qxg4 {[%clk 0:02:33]}  Ba6 {[%clk 0:02:05]} 20. h5 {[%clk 0:02:23]}  Bxf1 {[%clk 0:01:55]} 21. hxg6 {[%clk 0:02:21]}  Bxg2 {[%clk 0:01:47]} 22. Kxg2 {[%clk 0:02:19]}  fxg6 {[%clk 0:01:45]} 23. Qxg6 {[%clk 0:02:18]}  Rf6 {[%clk 0:01:31]} 24. Qg4 {[%clk 0:02:18]}  Qe8 {[%clk 0:01:26]} 25. Rh1 {[%clk 0:02:16]}  Qg6 {[%clk 0:01:20]} 26. Qh5 {[%clk 0:02:09]}  Raf8 {[%clk 0:01:16]} 27. Qxg6 {[%clk 0:02:05]}  Rxg6 {[%clk 0:01:17]} 28. Kf3 {[%clk 0:02:05]}  a6 {[%clk 0:01:15]} 29. a4 {[%clk 0:02:03]}  Be5 {[%clk 0:01:11]} 30. Ke3 {[%clk 0:01:52]}  Re8 {[%clk 0:01:00]} 31. Rh5 {[%clk 0:01:39]}  Bd4+ {[%clk 0:00:57]} 32. Kf3 {[%clk 0:01:37]}  Kg7 {[%clk 0:00:55]} 33. Nd1 {[%clk 0:01:31]}  b5 {[%clk 0:00:55]} 34. axb5 {[%clk 0:01:30]}  axb5 {[%clk 0:00:55]} 35. Ne3 {[%clk 0:01:23]}  Bxe3 {[%clk 0:00:55]} 36. Kxe3 {[%clk 0:01:23]}  Ra8 {[%clk 0:00:55]} 37. Rh1 {[%clk 0:01:17]}  Ra2 {[%clk 0:00:53]} 38. Rh2 {[%clk 0:01:13]}  Ra4 {[%clk 0:00:52]} 39. e5 {[%clk 0:01:11]}  dxe5 {[%clk 0:00:49]} 40. Bxe5+ {[%clk 0:01:12]}  Kf7 {[%clk 0:00:49]} 41. Rh7+ {[%clk 0:01:04]}  Ke8 {[%clk 0:00:49]} 42. Bf4 {[%clk 0:01:00]}  Rd4 {[%clk 0:00:45]} 43. d6 {[%clk 0:00:55]}  Re6+ {[%clk 0:00:42]} 44. Kf3 {[%clk 0:00:56]}  c4 {[%clk 0:00:41]} 45. Rc7 {[%clk 0:00:50]}  b4 {[%clk 0:00:40]} 46. d7+ {[%clk 0:00:45]}  Kd8 {[%clk 0:00:38]} 47. Rb7 {[%clk 0:00:42]}  Rxd7 {[%clk 0:00:33]} 48. Rxb4 {[%clk 0:00:40]}  Rc6 {[%clk 0:00:33]} 49. g4 {[%clk 0:00:36]}  Rd3+ {[%clk 0:00:33]} 50. Ke4 {[%clk 0:00:30]}  Rb3 {[%clk 0:00:33]} 51. Rxb3 {[%clk 0:00:24]}  cxb3 {[%clk 0:00:34]} 52. Be5 {[%clk 0:00:21]}  Ke7 {[%clk 0:00:33]} 53. g5 {[%clk 0:00:21]}  Ke6 {[%clk 0:00:33]} 54. g6 {[%clk 0:00:20]}  Rc4+ {[%clk 0:00:32]} 55. Bd4 {[%clk 0:00:17]}  Rc1 {[%clk 0:00:32]} 56. g7 {[%clk 0:00:16]}  Kf7 {[%clk 0:00:31]} 57. Kd3 {[%clk 0:00:13]}  Rc2 {[%clk 0:00:30]} 58. Bc3 {[%clk 0:00:12]}  Kg8 {[%clk 0:00:27]} 59. Kc4 {[%clk 0:00:12]}  Re2 {[%clk 0:00:20]} 60. Kxb3 {[%clk 0:00:12]}  Re6 {[%clk 0:00:21]} 61. Kc4 {[%clk 0:00:12]}  Kf7 {[%clk 0:00:19]} 62. b4 {[%clk 0:00:12]}  Re8 {[%clk 0:00:20]} 63. b5 {[%clk 0:00:12]}  Ke6 {[%clk 0:00:21]} 64. Kb4 {[%clk 0:00:11]}  Kd7 {[%clk 0:00:21]} 65. Ka5 {[%clk 0:00:11]}  Kc7 {[%clk 0:00:21]} 66. Bb4 {[%clk 0:00:10]}  Rg8 {[%clk 0:00:19]} 67. Bf8 {[%clk 0:00:10]}  Kb7 {[%clk 0:00:20]} 68. Kb4 {[%clk 0:00:10]}  Kb6 {[%clk 0:00:20]} 69. Kc4 {[%clk 0:00:07]}  Kb7 {[%clk 0:00:20]} 70. Kc5 {[%clk 0:00:08]}  Kc7 {[%clk 0:00:21]} 71. b6+ {[%clk 0:00:06]}  Kb7 {[%clk 0:00:21]} 72. Kb5 {[%clk 0:00:07]}  Kb8 {[%clk 0:00:21]} 73. Kc6 {[%clk 0:00:06]}  Kc8 {[%clk 0:00:18]} 74. b7+ {[%clk 0:00:07]}  Kb8 {[%clk 0:00:18]} 75. Bd6+ {[%clk 0:00:07]}  Ka7 {[%clk 0:00:19]} 76. b8=Q+ {[%clk 0:00:07]}  Ka6 {[%clk 0:00:18]} 77. Qb6# {[%clk 0:00:06]} 1-0

[Event "November 21 Early 2023"]
[Site "https://www.chess.com"]
[Date "2023.11.21"]
[Round "9"]
[White "HeroWilczek"]
[Black "Maect19"]
[Result "1/2-1/2"]
[Board "127"]
[TimeControl "180+1"]
[WhiteElo "2456"]
[BlackElo "2330"]
[WhiteClock "0:00:09"]
[BlackClock "0:00:06"]

1. d4 {[%clk 0:03:00]}  d5 {[%clk 0:02:58]} 2. c4 {[%clk 0:02:58]}  c6 {[%clk 0:02:58]} 3. Nf3 {[%clk 0:02:55]}  Nf6 {[%clk 0:02:58]} 4. e3 {[%clk 0:02:54]}  Bf5 {[%clk 0:02:50]} 5. Nc3 {[%clk 0:02:55]}  e6 {[%clk 0:02:49]} 6. Bd3 {[%clk 0:02:52]}  Bxd3 {[%clk 0:02:48]} 7. Qxd3 {[%clk 0:02:53]}  Nbd7 {[%clk 0:02:48]} 8. O-O {[%clk 0:02:52]}  Bd6 {[%clk 0:02:46]} 9. e4 {[%clk 0:02:52]}  dxe4 {[%clk 0:02:46]} 10. Nxe4 {[%clk 0:02:53]}  Nxe4 {[%clk 0:02:46]} 11. Qxe4 {[%clk 0:02:53]}  O-O {[%clk 0:02:44]} 12. Bg5 {[%clk 0:02:47]}  Be7 {[%clk 0:02:42]} 13. Bf4 {[%clk 0:02:46]}  Bf6 {[%clk 0:02:41]} 14. Rad1 {[%clk 0:02:45]}  Qa5 {[%clk 0:02:37]} 15. a3 {[%clk 0:02:42]}  Rfd8 {[%clk 0:02:34]} 16. d5 {[%clk 0:02:28]}  exd5 {[%clk 0:02:24]} 17. cxd5 {[%clk 0:02:29]}  cxd5 {[%clk 0:01:54]} 18. Rxd5 {[%clk 0:02:26]}  Nc5 {[%clk 0:01:31]} 19. Qf5 {[%clk 0:01:58]}  Rxd5 {[%clk 0:01:30]} 20. Qxd5 {[%clk 0:01:59]}  Rd8 {[%clk 0:01:29]} 21. Qc4 {[%clk 0:01:55]}  Bxb2 {[%clk 0:01:15]} 22. Ng5 {[%clk 0:01:55]}  Ne6 {[%clk 0:00:45]} 23. Nxe6 {[%clk 0:01:41]}  fxe6 {[%clk 0:00:46]} 24. Qxe6+ {[%clk 0:01:42]}  Kh8 {[%clk 0:00:46]} 25. Re1 {[%clk 0:01:39]}  Rg8 {[%clk 0:00:21]} 26. h4 {[%clk 0:01:33]}  Qxa3 {[%clk 0:00:20]} 27. h5 {[%clk 0:01:31]}  Qa6 {[%clk 0:00:17]} 28. Qd7 {[%clk 0:01:14]}  Qc6 {[%clk 0:00:17]} 29. Qe7 {[%clk 0:00:54]}  Bf6 {[%clk 0:00:15]} 30. Qe3 {[%clk 0:00:53]}  Qb6 {[%clk 0:00:14]} 31. Qh3 {[%clk 0:00:45]}  a5 {[%clk 0:00:12]} 32. h6 {[%clk 0:00:44]}  gxh6 {[%clk 0:00:12]} 33. Re6 {[%clk 0:00:38]}  Qb1+ {[%clk 0:00:11]} 34. Kh2 {[%clk 0:00:39]}  Bg7 {[%clk 0:00:12]} 35. Bxh6 {[%clk 0:00:26]}  Bxh6 {[%clk 0:00:08]} 36. Rxh6 {[%clk 0:00:26]}  Qe4 {[%clk 0:00:07]} 37. Qc3+ {[%clk 0:00:26]}  Rg7 {[%clk 0:00:06]} 38. Qc8+ {[%clk 0:00:25]}  Rg8 {[%clk 0:00:06]} 39. Qc3+ {[%clk 0:00:24]}  Rg7 {[%clk 0:00:06]} 40. Qc8+ {[%clk 0:00:08]}  Rg8 {[%clk 0:00:06]} 41. Qc3+ {[%clk 0:00:09]} 1/2-1/2

[Event "November 21 Early 2023"]
[Site "https://www.chess.com"]
[Date "2023.11.21"]
[Round "9"]
[White "Fernandez Siles, Luis"]
[Black "Ramla2020"]
[Result "0-1"]
[Board "128"]
[TimeControl "180+1"]
[WhiteFideId "2209420"]
[WhiteElo "2195"]
[BlackElo "2455"]
[WhiteTeam "ESP"]
[WhiteClock "0:00:35"]
[BlackClock "0:00:57"]

1. e4 {[%clk 0:03:00]}  e5 {[%clk 0:02:59]} 2. Nf3 {[%clk 0:03:00]}  d6 {[%clk 0:02:59]} 3. d4 {[%clk 0:02:59]}  Nd7 {[%clk 0:03:00]} 4. Nc3 {[%clk 0:02:57]}  c6 {[%clk 0:03:00]} 5. a4 {[%clk 0:02:56]}  Be7 {[%clk 0:03:01]} 6. Bc4 {[%clk 0:02:55]}  Ngf6 {[%clk 0:03:00]} 7. O-O {[%clk 0:02:51]}  O-O {[%clk 0:03:00]} 8. Re1 {[%clk 0:02:50]}  h6 {[%clk 0:03:00]} 9. Ba2 {[%clk 0:02:47]}  Qc7 {[%clk 0:02:59]} 10. Nh4 {[%clk 0:02:43]}  Re8 {[%clk 0:02:58]} 11. Nf5 {[%clk 0:02:42]}  Bf8 {[%clk 0:02:58]} 12. Qf3 {[%clk 0:02:36]}  exd4 {[%clk 0:02:56]} 13. Nxd4 {[%clk 0:02:35]}  Ne5 {[%clk 0:02:50]} 14. Qg3 {[%clk 0:02:35]}  Kh7 {[%clk 0:02:33]} 15. h3 {[%clk 0:02:07]}  Ng6 {[%clk 0:02:30]} 16. Be3 {[%clk 0:01:59]}  Nxe4 {[%clk 0:02:23]} 17. Nxe4 {[%clk 0:01:42]}  Rxe4 {[%clk 0:02:24]} 18. Qf3 {[%clk 0:01:33]}  d5 {[%clk 0:02:20]} 19. c4 {[%clk 0:01:29]}  Ne5 {[%clk 0:02:05]} 20. Qh5 {[%clk 0:01:18]}  g6 {[%clk 0:01:58]} 21. Qd1 {[%clk 0:01:16]}  Nxc4 {[%clk 0:01:49]} 22. Bxc4 {[%clk 0:01:11]}  dxc4 {[%clk 0:01:50]} 23. Qc2 {[%clk 0:01:09]}  Re8 {[%clk 0:01:38]} 24. Qxc4 {[%clk 0:01:09]}  Bg7 {[%clk 0:01:38]} 25. Rad1 {[%clk 0:01:06]}  Be6 {[%clk 0:01:33]} 26. Qc2 {[%clk 0:00:51]}  Bd5 {[%clk 0:01:28]} 27. Nb5 {[%clk 0:00:49]}  Qe5 {[%clk 0:01:20]} 28. f4 {[%clk 0:00:46]}  Qxb2 {[%clk 0:01:17]} 29. Qxb2 {[%clk 0:00:45]}  Bxb2 {[%clk 0:01:18]} 30. Nc7 {[%clk 0:00:45]}  Bb3 {[%clk 0:01:02]} 31. Rd7 {[%clk 0:00:37]}  Rad8 {[%clk 0:00:58]} 32. Nxe8 {[%clk 0:00:36]}  Rxd7 {[%clk 0:00:57]} 33. Nf6+ {[%clk 0:00:35]}  Bxf6 {[%clk 0:00:57]} 0-1

[Event "November 21 Early 2023"]
[Site "https://www.chess.com"]
[Date "2023.11.21"]
[Round "9"]
[White "Kopczynski, Michal"]
[Black "Rose, Felix"]
[Result "1-0"]
[Board "130"]
[TimeControl "180+1"]
[WhiteFideId "1124200"]
[BlackFideId "5105722"]
[WhiteElo "2174"]
[BlackElo "2039"]
[WhiteTeam "POL"]
[BlackTeam "MEX"]
[WhiteClock "0:01:40"]
[BlackClock "0:01:25"]

1. e4 {[%clk 0:03:00]}  c5 {[%clk 0:02:56]} 2. d4 {[%clk 0:03:01]}  cxd4 {[%clk 0:02:56]} 3. c3 {[%clk 0:03:01]}  dxc3 {[%clk 0:02:56]} 4. Nxc3 {[%clk 0:03:02]}  e6 {[%clk 0:02:57]} 5. f4 {[%clk 0:03:03]}  Nc6 {[%clk 0:02:58]} 6. Nf3 {[%clk 0:03:04]}  a6 {[%clk 0:02:57]} 7. Bd3 {[%clk 0:03:04]}  b5 {[%clk 0:02:57]} 8. O-O {[%clk 0:03:05]}  Bb7 {[%clk 0:02:58]} 9. Kh1 {[%clk 0:03:06]}  Nge7 {[%clk 0:02:57]} 10. Qe1 {[%clk 0:03:07]}  Ng6 {[%clk 0:02:57]} 11. f5 {[%clk 0:03:06]}  Nge5 {[%clk 0:02:56]} 12. fxe6 {[%clk 0:03:04]}  dxe6 {[%clk 0:02:55]} 13. Nxe5 {[%clk 0:03:00]}  Nxe5 {[%clk 0:02:55]} 14. Be2 {[%clk 0:02:54]}  Bd6 {[%clk 0:02:50]} 15. Bf4 {[%clk 0:02:45]}  Ng6 {[%clk 0:02:48]} 16. Bxd6 {[%clk 0:02:42]}  Qxd6 {[%clk 0:02:49]} 17. Rd1 {[%clk 0:02:42]}  Qe5 {[%clk 0:02:48]} 18. Qf2 {[%clk 0:02:29]}  O-O {[%clk 0:02:47]} 19. Rd7 {[%clk 0:02:23]}  Bxe4 {[%clk 0:02:33]} 20. Nxe4 {[%clk 0:02:14]}  Qxe4 {[%clk 0:02:33]} 21. Bf3 {[%clk 0:02:14]}  Qe5 {[%clk 0:01:38]} 22. Bxa8 {[%clk 0:02:13]}  Rxa8 {[%clk 0:01:39]} 23. Qxf7+ {[%clk 0:01:57]}  Kh8 {[%clk 0:01:39]} 24. Ra7 {[%clk 0:01:45]}  Rg8 {[%clk 0:01:25]} 25. Qxg8+ {[%clk 0:01:40]} 1-0

[Event "November 21 Early 2023"]
[Site "https://www.chess.com"]
[Date "2023.11.21"]
[Round "9"]
[White "Minko, Dmitry"]
[Black "Pumpkin_in_moonlight"]
[Result "1-0"]
[Board "134"]
[TimeControl "180+1"]
[WhiteFideId "24188468"]
[WhiteElo "1992"]
[BlackElo "2305"]
[WhiteTeam "FID"]
[WhiteClock "0:00:43"]
[BlackClock "0:00:00"]

1. e4 {[%clk 0:03:00]}  e5 {[%clk 0:02:54]} 2. Nf3 {[%clk 0:03:00]}  Nc6 {[%clk 0:02:54]} 3. d4 {[%clk 0:03:01]}  exd4 {[%clk 0:02:53]} 4. Nxd4 {[%clk 0:03:02]}  Nf6 {[%clk 0:02:48]} 5. Nc3 {[%clk 0:03:02]}  Bc5 {[%clk 0:02:38]} 6. Be3 {[%clk 0:02:55]}  Bb6 {[%clk 0:02:29]} 7. Nxc6 {[%clk 0:02:41]}  dxc6 {[%clk 0:02:28]} 8. Qxd8+ {[%clk 0:02:41]}  Kxd8 {[%clk 0:02:29]} 9. O-O-O+ {[%clk 0:02:41]}  Ke7 {[%clk 0:02:25]} 10. Bg5 {[%clk 0:02:39]}  h6 {[%clk 0:02:16]} 11. Bh4 {[%clk 0:02:40]}  g5 {[%clk 0:02:09]} 12. Bg3 {[%clk 0:02:40]}  Be6 {[%clk 0:02:04]} 13. Be2 {[%clk 0:02:25]}  Rad8 {[%clk 0:01:55]} 14. Be5 {[%clk 0:02:24]}  Rhe8 {[%clk 0:01:41]} 15. Rxd8 {[%clk 0:02:11]}  Rxd8 {[%clk 0:01:41]} 16. Rf1 {[%clk 0:02:12]}  Ng4 {[%clk 0:00:53]} 17. Bg3 {[%clk 0:02:07]}  Bd4 {[%clk 0:00:51]} 18. Bxc7 {[%clk 0:01:55]}  Rd7 {[%clk 0:00:48]} 19. Bg3 {[%clk 0:01:55]}  b5 {[%clk 0:00:35]} 20. a3 {[%clk 0:01:48]}  a5 {[%clk 0:00:34]} 21. h3 {[%clk 0:01:45]}  Ne5 {[%clk 0:00:32]} 22. Rd1 {[%clk 0:01:44]}  Nc4 {[%clk 0:00:31]} 23. Bxc4 {[%clk 0:01:11]}  Bxc4 {[%clk 0:00:30]} 24. Nb1 {[%clk 0:01:11]}  Bxb2+ {[%clk 0:00:25]} 25. Kxb2 {[%clk 0:01:09]}  Rxd1 {[%clk 0:00:26]} 26. Nc3 {[%clk 0:01:01]}  Rd7 {[%clk 0:00:26]} 27. Kc1 {[%clk 0:01:00]}  b4 {[%clk 0:00:20]} 28. axb4 {[%clk 0:01:00]}  axb4 {[%clk 0:00:20]} 29. Nd1 {[%clk 0:01:01]}  Be6 {[%clk 0:00:14]} 30. h4 {[%clk 0:01:01]}  f6 {[%clk 0:00:13]} 31. Ne3 {[%clk 0:00:59]}  c5 {[%clk 0:00:13]} 32. e5 {[%clk 0:00:55]}  f5 {[%clk 0:00:11]} 33. hxg5 {[%clk 0:00:55]}  hxg5 {[%clk 0:00:11]} 34. f4 {[%clk 0:00:56]}  gxf4 {[%clk 0:00:09]} 35. Bxf4 {[%clk 0:00:57]}  c4 {[%clk 0:00:09]} 36. Kb2 {[%clk 0:00:52]}  c3+ {[%clk 0:00:07]} 37. Kc1 {[%clk 0:00:52]}  Ra7 {[%clk 0:00:06]} 38. Kd1 {[%clk 0:00:53]}  Ra1+ {[%clk 0:00:05]} 39. Ke2 {[%clk 0:00:53]}  b3 {[%clk 0:00:05]} 40. cxb3 {[%clk 0:00:53]}  Bxb3 {[%clk 0:00:05]} 41. Nxf5+ {[%clk 0:00:53]}  Kd7 {[%clk 0:00:03]} 42. Nd4 {[%clk 0:00:54]}  Ra2+ {[%clk 0:00:02]} 43. Kd3 {[%clk 0:00:54]}  c2 {[%clk 0:00:02]} 44. Nxb3 {[%clk 0:00:53]}  Ra3 {[%clk 0:00:01]} 45. Kxc2 {[%clk 0:00:53]}  Ke6 {[%clk 0:00:01]} 46. Nd4+ {[%clk 0:00:44]}  Kd5 {[%clk 0:00:01]} 47. Nb5 {[%clk 0:00:44]}  Ra2+ {[%clk 0:00:01]} 48. Kd3 {[%clk 0:00:45]}  Rxg2 {[%clk 0:00:01]} 49. Nc7+ {[%clk 0:00:46]}  Kc6 {[%clk 0:00:01]} 50. e6 {[%clk 0:00:46]}  Ra2 {[%clk 0:00:01]} 51. e7 {[%clk 0:00:45]}  Ra3+ {[%clk 0:00:01]} 52. Ke4 {[%clk 0:00:43]}  Ra4+ {[%clk 0:00:00]} 53. Kf5 {[%clk 0:00:43]} 1-0

[Event "November 21 Early 2023"]
[Site "https://www.chess.com"]
[Date "2023.11.21"]
[Round "9"]
[White "Pace, Christopher"]
[Black "AndresDelgado77"]
[Result "0-1"]
[Board "135"]
[TimeControl "180+1"]
[WhiteFideId "2610167"]
[WhiteElo "2421"]
[BlackElo "2301"]
[WhiteTeam "CAN"]
[WhiteClock "0:00:27"]
[BlackClock "0:00:17"]

1. e4 {[%clk 0:03:00]}  e6 {[%clk 0:02:45]} 2. d4 {[%clk 0:03:00]}  d5 {[%clk 0:02:45]} 3. Nc3 {[%clk 0:03:00]}  Nf6 {[%clk 0:02:44]} 4. e5 {[%clk 0:02:52]}  Nfd7 {[%clk 0:02:44]} 5. Nce2 {[%clk 0:02:52]}  b6 {[%clk 0:02:43]} 6. c3 {[%clk 0:02:53]}  Ba6 {[%clk 0:02:44]} 7. Nf3 {[%clk 0:02:50]}  c5 {[%clk 0:02:43]} 8. g3 {[%clk 0:02:31]}  Qc7 {[%clk 0:02:43]} 9. Bg2 {[%clk 0:02:26]}  cxd4 {[%clk 0:02:41]} 10. cxd4 {[%clk 0:02:26]}  Qc4 {[%clk 0:02:23]} 11. Bd2 {[%clk 0:02:05]}  Nc6 {[%clk 0:02:17]} 12. Rc1 {[%clk 0:02:04]}  Qxe2+ {[%clk 0:02:10]} 13. Qxe2 {[%clk 0:02:04]}  Bxe2 {[%clk 0:02:11]} 14. Kxe2 {[%clk 0:02:04]}  Rc8 {[%clk 0:02:04]} 15. b4 {[%clk 0:01:57]}  b5 {[%clk 0:01:59]} 16. Ke3 {[%clk 0:01:48]}  Nb6 {[%clk 0:01:58]} 17. Bf1 {[%clk 0:01:29]}  a6 {[%clk 0:01:55]} 18. Bd3 {[%clk 0:01:17]}  Bxb4 {[%clk 0:01:42]} 19. Bxb4 {[%clk 0:01:11]}  Nxb4 {[%clk 0:01:40]} 20. Rxc8+ {[%clk 0:01:12]}  Nxc8 {[%clk 0:01:40]} 21. Rc1 {[%clk 0:01:13]}  Kd7 {[%clk 0:01:34]} 22. Be2 {[%clk 0:01:07]}  Nb6 {[%clk 0:01:27]} 23. a3 {[%clk 0:01:00]}  Nc6 {[%clk 0:01:26]} 24. Nd2 {[%clk 0:01:00]}  Na5 {[%clk 0:01:13]} 25. Bd3 {[%clk 0:00:41]}  h6 {[%clk 0:01:02]} 26. h4 {[%clk 0:00:40]}  Rc8 {[%clk 0:01:01]} 27. Rxc8 {[%clk 0:00:40]}  Kxc8 {[%clk 0:01:00]} 28. g4 {[%clk 0:00:39]}  Nac4+ {[%clk 0:00:54]} 29. Bxc4 {[%clk 0:00:39]}  Nxc4+ {[%clk 0:00:54]} 30. Nxc4 {[%clk 0:00:39]}  bxc4 {[%clk 0:00:44]} 31. Kd2 {[%clk 0:00:36]}  Kd7 {[%clk 0:00:38]} 32. Kc3 {[%clk 0:00:36]}  f5 {[%clk 0:00:35]} 33. gxf5 {[%clk 0:00:33]}  exf5 {[%clk 0:00:33]} 34. h5 {[%clk 0:00:32]}  f4 {[%clk 0:00:19]} 35. f3 {[%clk 0:00:31]}  Ke6 {[%clk 0:00:19]} 36. Kb4 {[%clk 0:00:32]}  Kf5 {[%clk 0:00:19]} 37. Kc3 {[%clk 0:00:32]}  g5 {[%clk 0:00:17]} 38. hxg6 {[%clk 0:00:27]}  Kxg6 {[%clk 0:00:17]} 0-1